[Event "Titled Tuesday Blitz August 15 Late 2023"]
[White "Vafin, Ayrat"]
[Black "Sreyas Payyappat"]
[WhiteFideId "4146530"]
[BlackFideId "46674969"]
[WhiteElo "2427"]
[BlackElo "2550"]
[Result "1-0"]
[Round "5"]
[TimeControl "180+1"]
[Date "2023.08.15"]
[WhiteClock "0:01:04"]
[BlackClock "0:00:09"]
[Board "84"]

1. Nf3 {[%clk 0:02:56]}  Nf6 {[%clk 0:02:59]} 2. g3 {[%clk 0:02:55]}  c5 {[%clk 0:02:59]} 3. Bg2 {[%clk 0:02:55]}  Nc6 {[%clk 0:02:59]} 4. d4 {[%clk 0:02:56]}  cxd4 {[%clk 0:02:54]} 5. Nxd4 {[%clk 0:02:57]}  g6 {[%clk 0:02:54]} 6. c4 {[%clk 0:02:56]}  Bg7 {[%clk 0:02:53]} 7. Nc3 {[%clk 0:02:56]}  O-O {[%clk 0:02:53]} 8. Nc2 {[%clk 0:02:55]}  d6 {[%clk 0:02:45]} 9. O-O {[%clk 0:02:55]}  Be6 {[%clk 0:02:45]} 10. b3 {[%clk 0:02:55]}  Rc8 {[%clk 0:02:18]} 11. Bb2 {[%clk 0:02:54]}  Nd7 {[%clk 0:02:16]} 12. Ne3 {[%clk 0:02:50]}  Nde5 {[%clk 0:02:07]} 13. Qd2 {[%clk 0:02:48]}  f5 {[%clk 0:02:02]} 14. Ned5 {[%clk 0:02:43]}  Kh8 {[%clk 0:01:57]} 15. h3 {[%clk 0:02:11]}  Na5 {[%clk 0:01:50]} 16. Nb5 {[%clk 0:01:27]}  a6 {[%clk 0:01:31]} 17. Nd4 {[%clk 0:01:27]}  Bg8 {[%clk 0:01:26]} 18. Rac1 {[%clk 0:01:19]}  Rc5 {[%clk 0:00:58]} 19. Nf4 {[%clk 0:01:15]}  Naxc4 {[%clk 0:00:32]} 20. bxc4 {[%clk 0:01:14]}  Nxc4 {[%clk 0:00:33]} 21. Rxc4 {[%clk 0:01:14]}  Rxc4 {[%clk 0:00:19]} 22. Nde6 {[%clk 0:01:13]}  Bxe6 {[%clk 0:00:09]} 23. Bxg7+ {[%clk 0:01:04]} 1-0


[Site "https://www.chess.com"]

[Event "Titled Tuesday Blitz August 15 Late 2023"]
[White "subham777"]
[Black "Andrews, Todd"]
[BlackFideId "2012456"]
[WhiteElo "2537"]
[BlackElo "2410"]
[Result "1/2-1/2"]
[Round "5"]
[TimeControl "180+1"]
[Date "2023.08.15"]
[WhiteClock "0:00:05"]
[BlackClock "0:00:17"]
[Board "87"]

1. e4 {[%clk 0:02:58]}  c5 {[%clk 0:02:59]} 2. Nf3 {[%clk 0:02:56]}  d6 {[%clk 0:03:00]} 3. d4 {[%clk 0:02:55]}  cxd4 {[%clk 0:03:01]} 4. Qxd4 {[%clk 0:02:55]}  a6 {[%clk 0:03:00]} 5. Nc3 {[%clk 0:02:55]}  Nc6 {[%clk 0:03:00]} 6. Qd2 {[%clk 0:02:56]}  Nf6 {[%clk 0:02:59]} 7. b3 {[%clk 0:02:56]}  e6 {[%clk 0:02:57]} 8. Bb2 {[%clk 0:02:56]}  Be7 {[%clk 0:02:57]} 9. O-O-O {[%clk 0:02:56]}  O-O {[%clk 0:02:58]} 10. Kb1 {[%clk 0:02:57]}  Qc7 {[%clk 0:02:57]} 11. h3 {[%clk 0:02:56]}  b5 {[%clk 0:02:55]} 12. g4 {[%clk 0:02:56]}  Bb7 {[%clk 0:02:54]} 13. g5 {[%clk 0:02:55]}  Nd7 {[%clk 0:02:54]} 14. h4 {[%clk 0:02:53]}  Nc5 {[%clk 0:02:49]} 15. Bd3 {[%clk 0:02:49]}  b4 {[%clk 0:02:46]} 16. Ne2 {[%clk 0:02:48]}  Rfc8 {[%clk 0:02:31]} 17. h5 {[%clk 0:02:46]}  Bf8 {[%clk 0:02:18]} 18. g6 {[%clk 0:02:26]}  fxg6 {[%clk 0:02:16]} 19. hxg6 {[%clk 0:02:26]}  h6 {[%clk 0:02:16]} 20. Ng3 {[%clk 0:02:18]}  Nxd3 {[%clk 0:02:03]} 21. cxd3 {[%clk 0:02:14]}  a5 {[%clk 0:01:54]} 22. Qf4 {[%clk 0:02:08]}  Qd7 {[%clk 0:01:42]} 23. Ng5 {[%clk 0:01:56]}  Ne5 {[%clk 0:01:28]} 24. Bxe5 {[%clk 0:01:40]}  dxe5 {[%clk 0:01:27]} 25. Qxe5 {[%clk 0:01:24]}  a4 {[%clk 0:01:19]} 26. Qxe6+ {[%clk 0:01:11]}  Qxe6 {[%clk 0:01:19]} 27. Nxe6 {[%clk 0:01:12]}  axb3 {[%clk 0:01:18]} 28. axb3 {[%clk 0:01:11]}  Rc3 {[%clk 0:01:17]} 29. Nxf8 {[%clk 0:00:31]}  Kxf8 {[%clk 0:01:13]} 30. Ne2 {[%clk 0:00:24]}  Rxb3+ {[%clk 0:01:05]} 31. Kc2 {[%clk 0:00:24]}  Rba3 {[%clk 0:00:58]} 32. Kd2 {[%clk 0:00:24]}  Rd8 {[%clk 0:00:46]} 33. Nf4 {[%clk 0:00:18]}  Ke7 {[%clk 0:00:35]} 34. Rb1 {[%clk 0:00:09]}  b3 {[%clk 0:00:23]} 35. Ke3 {[%clk 0:00:09]}  Ba6 {[%clk 0:00:22]} 36. Nd5+ {[%clk 0:00:08]}  Kd6 {[%clk 0:00:20]} 37. Rhc1 {[%clk 0:00:07]}  Rf8 {[%clk 0:00:19]} 38. Rc3 {[%clk 0:00:07]}  Rb8 {[%clk 0:00:17]} 39. f4 {[%clk 0:00:06]}  h5 {[%clk 0:00:17]} 40. Nc7 {[%clk 0:00:04]}  Bc8 {[%clk 0:00:15]} 41. Nd5 {[%clk 0:00:02]}  Bd7 {[%clk 0:00:14]} 42. Kd4 {[%clk 0:00:03]}  h4 {[%clk 0:00:14]} 43. e5+ {[%clk 0:00:03]}  Ke6 {[%clk 0:00:14]} 44. Nc7+ {[%clk 0:00:03]}  Kf5 {[%clk 0:00:14]} 45. Nd5 {[%clk 0:00:04]}  h3 {[%clk 0:00:13]} 46. Ne3+ {[%clk 0:00:03]}  Kxg6 {[%clk 0:00:13]} 47. Nc4 {[%clk 0:00:04]}  Ra2 {[%clk 0:00:12]} 48. Ke4 {[%clk 0:00:02]}  Ra4 {[%clk 0:00:12]} 49. Ke3 {[%clk 0:00:01]}  Bf5 {[%clk 0:00:12]} 50. Rbxb3 {[%clk 0:00:01]}  Rxb3 {[%clk 0:00:12]} 51. Rxb3 {[%clk 0:00:01]}  h2 {[%clk 0:00:11]} 52. Rb1 {[%clk 0:00:02]}  Ra2 {[%clk 0:00:10]} 53. Rh1 {[%clk 0:00:03]}  Rc2 {[%clk 0:00:09]} 54. Nd2 {[%clk 0:00:03]}  Rc3 {[%clk 0:00:09]} 55. Rxh2 {[%clk 0:00:04]}  Rxd3+ {[%clk 0:00:10]} 56. Ke2 {[%clk 0:00:04]}  Rd4 {[%clk 0:00:11]} 57. Rg2+ {[%clk 0:00:04]}  Kf7 {[%clk 0:00:11]} 58. Ke3 {[%clk 0:00:04]}  Rd3+ {[%clk 0:00:11]} 59. Ke2 {[%clk 0:00:05]}  Rd4 {[%clk 0:00:12]} 60. Rf2 {[%clk 0:00:05]}  Ra4 {[%clk 0:00:11]} 61. Nf3 {[%clk 0:00:06]}  g6 {[%clk 0:00:12]} 62. Ke3 {[%clk 0:00:06]}  Ke7 {[%clk 0:00:12]} 63. Rd2 {[%clk 0:00:05]}  Ra3+ {[%clk 0:00:13]} 64. Kf2 {[%clk 0:00:05]}  Ra4 {[%clk 0:00:13]} 65. Rd4 {[%clk 0:00:05]}  Ra2+ {[%clk 0:00:13]} 66. Kg3 {[%clk 0:00:06]}  Ra3 {[%clk 0:00:14]} 67. Rb4 {[%clk 0:00:05]}  Ke6 {[%clk 0:00:14]} 68. Kf2 {[%clk 0:00:05]}  Kd5 {[%clk 0:00:14]} 69. Rd4+ {[%clk 0:00:05]}  Kc5 {[%clk 0:00:14]} 70. Rd6 {[%clk 0:00:05]}  Ra2+ {[%clk 0:00:14]} 71. Kg3 {[%clk 0:00:05]}  Ra3 {[%clk 0:00:14]} 72. Kf2 {[%clk 0:00:04]}  Ra2+ {[%clk 0:00:15]} 73. Rd2 {[%clk 0:00:05]}  Ra4 {[%clk 0:00:14]} 74. Kg3 {[%clk 0:00:03]}  Be4 {[%clk 0:00:15]} 75. Re2 {[%clk 0:00:03]}  Kd5 {[%clk 0:00:14]} 76. Ng5 {[%clk 0:00:03]}  Ra3+ {[%clk 0:00:14]} 77. Kf2 {[%clk 0:00:02]}  Bf5 {[%clk 0:00:15]} 78. Rd2+ {[%clk 0:00:03]}  Kc6 {[%clk 0:00:14]} 79. e6 {[%clk 0:00:03]}  Ra7 {[%clk 0:00:14]} 80. Re2 {[%clk 0:00:02]}  Re7 {[%clk 0:00:14]} 81. Re5 {[%clk 0:00:02]}  Kd6 {[%clk 0:00:15]} 82. Ke3 {[%clk 0:00:02]}  Bxe6 {[%clk 0:00:15]} 83. Nxe6 {[%clk 0:00:02]}  Rxe6 {[%clk 0:00:16]} 84. Rxe6+ {[%clk 0:00:03]}  Kxe6 {[%clk 0:00:17]} 85. Kf3 {[%clk 0:00:04]}  Kf5 {[%clk 0:00:16]} 86. Kg3 {[%clk 0:00:04]}  g5 {[%clk 0:00:16]} 87. fxg5 {[%clk 0:00:05]}  Kxg5 {[%clk 0:00:17]} 1/2-1/2


[Site "https://www.chess.com"]

[Event "Titled Tuesday Blitz August 15 Late 2023"]
[White "Melikhov, Evgeny V."]
[Black "Grinev, Valeriy"]
[WhiteFideId "4122046"]
[BlackFideId "14117517"]
[WhiteElo "2409"]
[BlackElo "2532"]
[Result "1-0"]
[Round "5"]
[TimeControl "180+1"]
[Date "2023.08.15"]
[WhiteClock "0:00:10"]
[BlackClock "0:01:48"]
[Board "88"]

1. d4 {[%clk 0:03:00]}  Nf6 {[%clk 0:02:55]} 2. c4 {[%clk 0:03:00]}  e6 {[%clk 0:02:56]} 3. Nc3 {[%clk 0:03:00]}  Bb4 {[%clk 0:02:56]} 4. Qc2 {[%clk 0:03:01]}  O-O {[%clk 0:02:55]} 5. e4 {[%clk 0:03:01]}  Bxc3+ {[%clk 0:02:52]} 6. bxc3 {[%clk 0:02:59]}  c5 {[%clk 0:02:52]} 7. e5 {[%clk 0:02:52]}  Ne8 {[%clk 0:02:51]} 8. Nf3 {[%clk 0:02:51]}  d6 {[%clk 0:02:49]} 9. Bd3 {[%clk 0:02:51]}  g6 {[%clk 0:02:46]} 10. Bh6 {[%clk 0:02:49]}  Ng7 {[%clk 0:02:44]} 11. h4 {[%clk 0:02:45]}  Nc6 {[%clk 0:02:41]} 12. h5 {[%clk 0:02:33]}  cxd4 {[%clk 0:02:34]} 13. cxd4 {[%clk 0:02:23]}  dxe5 {[%clk 0:02:33]} 14. hxg6 {[%clk 0:01:42]}  f5 {[%clk 0:02:29]} 15. gxh7+ {[%clk 0:01:31]}  Kh8 {[%clk 0:02:21]} 16. Qd2 {[%clk 0:01:04]}  e4 {[%clk 0:02:17]} 17. Bxg7+ {[%clk 0:00:59]}  Kxg7 {[%clk 0:02:16]} 18. Qh6+ {[%clk 0:00:56]}  Kf7 {[%clk 0:02:17]} 19. Ng5+ {[%clk 0:00:43]}  Ke7 {[%clk 0:02:16]} 20. Qg7+ {[%clk 0:00:38]}  Kd6 {[%clk 0:02:12]} 21. c5+ {[%clk 0:00:30]}  Kd5 {[%clk 0:02:11]} 22. Bc2 {[%clk 0:00:28]}  Nxd4 {[%clk 0:01:56]} 23. Rd1 {[%clk 0:00:24]}  e5 {[%clk 0:01:55]} 24. h8=Q {[%clk 0:00:22]}  Rxh8 {[%clk 0:01:54]} 25. Rxh8 {[%clk 0:00:22]}  Qa5+ {[%clk 0:01:51]} 26. Kf1 {[%clk 0:00:21]}  b6 {[%clk 0:01:43]} 27. Bb3+ {[%clk 0:00:19]}  Kxc5 {[%clk 0:01:42]} 28. Qxe5+ {[%clk 0:00:18]}  Kb4 {[%clk 0:01:43]} 29. Qxd4+ {[%clk 0:00:18]}  Ka3 {[%clk 0:01:43]} 30. Rb1 {[%clk 0:00:15]}  Ba6+ {[%clk 0:01:43]} 31. Kg1 {[%clk 0:00:14]}  Rxh8 {[%clk 0:01:39]} 32. Qxh8 {[%clk 0:00:13]}  Bd3 {[%clk 0:01:38]} 33. Qf8+ {[%clk 0:00:12]}  Qb4 {[%clk 0:01:36]} 34. Qxb4+ {[%clk 0:00:12]}  Kxb4 {[%clk 0:01:37]} 35. Bc2+ {[%clk 0:00:12]}  Kc3 {[%clk 0:01:37]} 36. Bxd3 {[%clk 0:00:12]}  exd3 {[%clk 0:01:38]} 37. Nf3 {[%clk 0:00:11]}  Kc2 {[%clk 0:01:38]} 38. Rb3 {[%clk 0:00:10]}  d2 {[%clk 0:01:39]} 39. Nxd2 {[%clk 0:00:10]}  Kxd2 {[%clk 0:01:39]} 40. Rf3 {[%clk 0:00:09]}  a5 {[%clk 0:01:40]} 41. Rxf5 {[%clk 0:00:10]}  Kc3 {[%clk 0:01:40]} 42. Rb5 {[%clk 0:00:10]}  a4 {[%clk 0:01:41]} 43. Rxb6 {[%clk 0:00:10]}  a3 {[%clk 0:01:41]} 44. Rb3+ {[%clk 0:00:09]}  Kc2 {[%clk 0:01:42]} 45. Rxa3 {[%clk 0:00:10]}  Kd2 {[%clk 0:01:43]} 46. Rb3 {[%clk 0:00:10]}  Ke2 {[%clk 0:01:44]} 47. a3 {[%clk 0:00:10]}  Kd2 {[%clk 0:01:45]} 48. a4 {[%clk 0:00:10]}  Kc2 {[%clk 0:01:46]} 49. Rb6 {[%clk 0:00:10]}  Kc3 {[%clk 0:01:46]} 50. a5 {[%clk 0:00:10]}  Kc4 {[%clk 0:01:46]} 51. a6 {[%clk 0:00:11]}  Kc5 {[%clk 0:01:47]} 52. Rb1 {[%clk 0:00:11]}  Kc4 {[%clk 0:01:47]} 53. a7 {[%clk 0:00:11]}  Kc3 {[%clk 0:01:48]} 54. a8=Q {[%clk 0:00:12]}  Kc2 {[%clk 0:01:49]} 55. Qe4+ {[%clk 0:00:11]}  Kd2 {[%clk 0:01:48]} 56. Rb2+ {[%clk 0:00:11]}  Kc1 {[%clk 0:01:48]} 57. Qc2# {[%clk 0:00:10]} 1-0


[Site "https://www.chess.com"]

[Event "Titled Tuesday Blitz August 15 Late 2023"]
[White "Kupervaser, Erez"]
[Black "Dwilewicz, Katarzyna"]
[WhiteFideId "2814587"]
[BlackFideId "1148486"]
[WhiteElo "2527"]
[BlackElo "2401"]
[Result "1-0"]
[Round "5"]
[TimeControl "180+1"]
[Date "2023.08.15"]
[WhiteClock "0:00:20"]
[BlackClock "0:00:00"]
[Board "90"]

1. e4 {[%clk 0:03:00]}  c5 {[%clk 0:02:58]} 2. Nf3 {[%clk 0:03:00]}  d6 {[%clk 0:02:56]} 3. d4 {[%clk 0:03:00]}  cxd4 {[%clk 0:02:55]} 4. Nxd4 {[%clk 0:03:01]}  Nf6 {[%clk 0:02:55]} 5. Nc3 {[%clk 0:03:02]}  a6 {[%clk 0:02:56]} 6. Bc4 {[%clk 0:03:02]}  Nbd7 {[%clk 0:02:53]} 7. Bb3 {[%clk 0:02:47]}  Nc5 {[%clk 0:02:45]} 8. Qf3 {[%clk 0:02:45]}  Nxb3 {[%clk 0:02:43]} 9. axb3 {[%clk 0:02:44]}  e6 {[%clk 0:02:43]} 10. O-O {[%clk 0:02:44]}  Be7 {[%clk 0:02:44]} 11. Qg3 {[%clk 0:02:45]}  O-O {[%clk 0:02:37]} 12. Bh6 {[%clk 0:02:45]}  Ne8 {[%clk 0:02:35]} 13. Rad1 {[%clk 0:02:44]}  Kh8 {[%clk 0:02:25]} 14. Be3 {[%clk 0:02:43]}  Qc7 {[%clk 0:02:16]} 15. f4 {[%clk 0:02:39]}  b5 {[%clk 0:02:14]} 16. f5 {[%clk 0:02:14]}  b4 {[%clk 0:02:03]} 17. Na4 {[%clk 0:01:57]}  e5 {[%clk 0:02:00]} 18. Nf3 {[%clk 0:01:57]}  Bb7 {[%clk 0:01:52]} 19. Nb6 {[%clk 0:01:51]}  Rd8 {[%clk 0:01:41]} 20. Nc4 {[%clk 0:01:46]}  Qb8 {[%clk 0:01:24]} 21. Bb6 {[%clk 0:01:34]}  Rc8 {[%clk 0:01:17]} 22. Qe1 {[%clk 0:01:32]}  Nf6 {[%clk 0:01:12]} 23. Nfd2 {[%clk 0:01:26]}  Bd8 {[%clk 0:00:49]} 24. Bf2 {[%clk 0:01:24]}  a5 {[%clk 0:00:46]} 25. Qe2 {[%clk 0:01:08]}  Bc7 {[%clk 0:00:42]} 26. Bh4 {[%clk 0:01:06]}  Bd8 {[%clk 0:00:25]} 27. Kh1 {[%clk 0:00:55]}  d5 {[%clk 0:00:19]} 28. exd5 {[%clk 0:00:54]}  Bxd5 {[%clk 0:00:20]} 29. Bxf6 {[%clk 0:00:38]}  Bxf6 {[%clk 0:00:19]} 30. Nf3 {[%clk 0:00:39]}  Bxc4 {[%clk 0:00:15]} 31. bxc4 {[%clk 0:00:39]}  Qc7 {[%clk 0:00:14]} 32. b3 {[%clk 0:00:40]}  a4 {[%clk 0:00:12]} 33. Rd5 {[%clk 0:00:38]}  Rfe8 {[%clk 0:00:10]} 34. g4 {[%clk 0:00:35]}  e4 {[%clk 0:00:00]} 35. Nd2 {[%clk 0:00:20]} 1-0


[Site "https://www.chess.com"]

[Event "Titled Tuesday Blitz August 15 Late 2023"]
[White "Yurtseven, Melih"]
[Black "Polaczek, Richard"]
[WhiteFideId "6312160"]
[BlackFideId "200026"]
[WhiteElo "2519"]
[BlackElo "2368"]
[Result "1-0"]
[Round "5"]
[TimeControl "180+1"]
[Date "2023.08.15"]
[WhiteClock "0:01:03"]
[BlackClock "0:00:00"]
[Board "93"]

1. c4 {[%clk 0:03:00]}  e6 {[%clk 0:02:58]} 2. Nc3 {[%clk 0:03:01]}  d5 {[%clk 0:02:58]} 3. e3 {[%clk 0:03:01]}  Nf6 {[%clk 0:02:56]} 4. Nf3 {[%clk 0:03:01]}  c6 {[%clk 0:02:55]} 5. b3 {[%clk 0:03:01]}  Bd6 {[%clk 0:02:52]} 6. Bb2 {[%clk 0:03:02]}  a6 {[%clk 0:02:50]} 7. g4 {[%clk 0:03:01]}  h6 {[%clk 0:02:43]} 8. Rg1 {[%clk 0:02:57]}  e5 {[%clk 0:02:41]} 9. cxd5 {[%clk 0:02:49]}  cxd5 {[%clk 0:02:40]} 10. h3 {[%clk 0:02:50]}  Nc6 {[%clk 0:02:38]} 11. d3 {[%clk 0:02:43]}  Qe7 {[%clk 0:02:34]} 12. Be2 {[%clk 0:02:42]}  b5 {[%clk 0:02:22]} 13. d4 {[%clk 0:02:35]}  e4 {[%clk 0:02:19]} 14. Nd2 {[%clk 0:02:34]}  Be6 {[%clk 0:02:00]} 15. a4 {[%clk 0:02:31]}  b4 {[%clk 0:01:48]} 16. Na2 {[%clk 0:02:30]}  O-O {[%clk 0:01:45]} 17. h4 {[%clk 0:02:30]}  Nh7 {[%clk 0:01:29]} 18. Rc1 {[%clk 0:02:30]}  Nb8 {[%clk 0:01:22]} 19. g5 {[%clk 0:02:29]}  hxg5 {[%clk 0:01:21]} 20. hxg5 {[%clk 0:02:30]}  Nxg5 {[%clk 0:01:20]} 21. Bg4 {[%clk 0:02:30]}  f5 {[%clk 0:01:15]} 22. Bh5 {[%clk 0:02:26]}  Nd7 {[%clk 0:01:14]} 23. Bg6 {[%clk 0:02:24]}  Bf7 {[%clk 0:01:03]} 24. Qh5 {[%clk 0:02:22]}  Bxg6 {[%clk 0:01:01]} 25. Qxg6 {[%clk 0:02:01]}  Nh7 {[%clk 0:00:56]} 26. Rc6 {[%clk 0:01:59]}  Rf6 {[%clk 0:00:51]} 27. Qh5 {[%clk 0:01:59]}  Raf8 {[%clk 0:00:47]} 28. Rxa6 {[%clk 0:01:53]}  R8f7 {[%clk 0:00:30]} 29. Kd1 {[%clk 0:01:52]}  Nb8 {[%clk 0:00:18]} 30. Ra5 {[%clk 0:01:47]}  Qb7 {[%clk 0:00:15]} 31. Rb5 {[%clk 0:01:47]}  Qc6 {[%clk 0:00:15]} 32. Nxb4 {[%clk 0:01:29]}  Bxb4 {[%clk 0:00:13]} 33. Rxb4 {[%clk 0:01:30]}  Na6 {[%clk 0:00:11]} 34. Rb5 {[%clk 0:01:30]}  Rc7 {[%clk 0:00:09]} 35. Ba3 {[%clk 0:01:03]}  Qc2+ {[%clk 0:00:07]} 36. Ke1 {[%clk 0:01:04]}  Nf8 {[%clk 0:00:00]} 37. Qd1 {[%clk 0:01:03]} 1-0


[Site "https://www.chess.com"]

[Event "Titled Tuesday Blitz August 15 Late 2023"]
[White "Berezin, Viktor"]
[Black "Silvestre, Christian"]
[WhiteFideId "14107872"]
[BlackFideId "30956269"]
[WhiteElo "2515"]
[BlackElo "2363"]
[Result "0-1"]
[Round "5"]
[TimeControl "180+1"]
[Date "2023.08.15"]
[WhiteClock "0:00:00"]
[BlackClock "0:00:17"]
[Board "94"]

1. g3 {[%clk 0:02:53]}  e5 {[%clk 0:02:53]} 2. Bg2 {[%clk 0:02:50]}  Nf6 {[%clk 0:02:53]} 3. c4 {[%clk 0:02:47]}  Bc5 {[%clk 0:02:52]} 4. e3 {[%clk 0:02:45]}  O-O {[%clk 0:02:51]} 5. Nc3 {[%clk 0:02:42]}  Re8 {[%clk 0:02:49]} 6. Nge2 {[%clk 0:02:40]}  Bf8 {[%clk 0:02:46]} 7. O-O {[%clk 0:02:39]}  d6 {[%clk 0:02:44]} 8. h3 {[%clk 0:02:38]}  Nc6 {[%clk 0:02:43]} 9. d4 {[%clk 0:02:38]}  Bd7 {[%clk 0:02:38]} 10. a3 {[%clk 0:02:38]}  Qc8 {[%clk 0:02:35]} 11. Kh2 {[%clk 0:02:38]}  g6 {[%clk 0:02:29]} 12. b4 {[%clk 0:02:37]}  Bg7 {[%clk 0:02:28]} 13. Bb2 {[%clk 0:02:38]}  exd4 {[%clk 0:02:22]} 14. exd4 {[%clk 0:02:36]}  Bf5 {[%clk 0:02:16]} 15. Nf4 {[%clk 0:02:29]}  Ne4 {[%clk 0:02:14]} 16. Ncd5 {[%clk 0:02:22]}  h5 {[%clk 0:01:58]} 17. Rc1 {[%clk 0:02:14]}  Ne7 {[%clk 0:01:55]} 18. Nxe7+ {[%clk 0:02:10]}  Rxe7 {[%clk 0:01:56]} 19. Nd5 {[%clk 0:02:10]}  Re8 {[%clk 0:01:56]} 20. Ne3 {[%clk 0:02:10]}  Bd7 {[%clk 0:01:53]} 21. Ba1 {[%clk 0:02:03]}  Bh6 {[%clk 0:01:49]} 22. Qd3 {[%clk 0:01:55]}  Nxf2 {[%clk 0:01:42]} 23. Rxf2 {[%clk 0:01:48]}  Rxe3 {[%clk 0:01:42]} 24. Qf1 {[%clk 0:01:45]}  f5 {[%clk 0:01:40]} 25. d5 {[%clk 0:01:37]}  Qd8 {[%clk 0:01:30]} 26. Re1 {[%clk 0:01:22]}  Rxe1 {[%clk 0:01:20]} 27. Qxe1 {[%clk 0:01:23]}  Qf8 {[%clk 0:01:15]} 28. c5 {[%clk 0:01:03]}  Re8 {[%clk 0:01:12]} 29. Qd1 {[%clk 0:01:01]}  Bg7 {[%clk 0:01:08]} 30. Bd4 {[%clk 0:00:57]}  Be5 {[%clk 0:01:06]} 31. Bxe5 {[%clk 0:00:46]}  Rxe5 {[%clk 0:01:05]} 32. Qd4 {[%clk 0:00:46]}  b6 {[%clk 0:00:59]} 33. Rc2 {[%clk 0:00:40]}  Ba4 {[%clk 0:00:48]} 34. Rc3 {[%clk 0:00:24]}  Be8 {[%clk 0:00:47]} 35. cxb6 {[%clk 0:00:22]}  cxb6 {[%clk 0:00:45]} 36. Rc8 {[%clk 0:00:20]}  Kh7 {[%clk 0:00:42]} 37. Qc3 {[%clk 0:00:19]}  Re7 {[%clk 0:00:40]} 38. a4 {[%clk 0:00:18]}  Qg7 {[%clk 0:00:37]} 39. Qb3 {[%clk 0:00:18]}  Qe5 {[%clk 0:00:32]} 40. a5 {[%clk 0:00:16]}  h4 {[%clk 0:00:27]} 41. a6 {[%clk 0:00:15]}  f4 {[%clk 0:00:24]} 42. Bf3 {[%clk 0:00:05]}  hxg3+ {[%clk 0:00:20]} 43. Kg2 {[%clk 0:00:05]}  Qe1 {[%clk 0:00:20]} 44. Qc2 {[%clk 0:00:04]}  Bb5 {[%clk 0:00:18]} 45. Rc4 {[%clk 0:00:01]}  Bxc4 {[%clk 0:00:18]} 46. Be4 {[%clk 0:00:00]}  Qxe4+ {[%clk 0:00:17]} 0-1


[Site "https://www.chess.com"]

[Event "Titled Tuesday Blitz August 15 Late 2023"]
[White "Koc, Przemyslaw"]
[Black "Daianu, Cristian-Clement"]
[WhiteFideId "1109081"]
[BlackFideId "1208926"]
[WhiteElo "2510"]
[BlackElo "2347"]
[Result "0-1"]
[Round "5"]
[TimeControl "180+1"]
[Date "2023.08.15"]
[WhiteClock "0:00:08"]
[BlackClock "0:01:38"]
[Board "95"]

1. Nf3 {[%clk 0:02:54]}  d5 {[%clk 0:02:59]} 2. g3 {[%clk 0:02:55]}  e6 {[%clk 0:03:00]} 3. Bg2 {[%clk 0:02:56]}  f5 {[%clk 0:03:00]} 4. O-O {[%clk 0:02:55]}  Nf6 {[%clk 0:03:00]} 5. d4 {[%clk 0:02:55]}  Bd6 {[%clk 0:03:01]} 6. c4 {[%clk 0:02:53]}  c6 {[%clk 0:03:01]} 7. Ne5 {[%clk 0:02:48]}  O-O {[%clk 0:03:01]} 8. Nd2 {[%clk 0:02:48]}  Kh8 {[%clk 0:03:01]} 9. Ndf3 {[%clk 0:02:48]}  Bd7 {[%clk 0:03:01]} 10. c5 {[%clk 0:02:42]}  Bc7 {[%clk 0:03:01]} 11. b4 {[%clk 0:02:41]}  Be8 {[%clk 0:03:00]} 12. Nd3 {[%clk 0:02:38]}  Nbd7 {[%clk 0:03:00]} 13. Bf4 {[%clk 0:02:37]}  Bh5 {[%clk 0:02:59]} 14. Bxc7 {[%clk 0:02:36]}  Qxc7 {[%clk 0:03:00]} 15. Nfe5 {[%clk 0:02:35]}  Nxe5 {[%clk 0:02:57]} 16. Nxe5 {[%clk 0:02:34]}  Nd7 {[%clk 0:02:57]} 17. Nxd7 {[%clk 0:02:31]}  Qxd7 {[%clk 0:02:58]} 18. f4 {[%clk 0:02:31]}  a5 {[%clk 0:02:52]} 19. a3 {[%clk 0:02:29]}  b5 {[%clk 0:02:51]} 20. cxb6 {[%clk 0:02:28]}  axb4 {[%clk 0:02:50]} 21. axb4 {[%clk 0:02:25]}  Qb7 {[%clk 0:02:51]} 22. Qd2 {[%clk 0:02:04]}  Qxb6 {[%clk 0:02:50]} 23. e3 {[%clk 0:02:00]}  h6 {[%clk 0:02:45]} 24. Ra5 {[%clk 0:01:48]}  Rxa5 {[%clk 0:02:41]} 25. bxa5 {[%clk 0:01:48]}  Qb5 {[%clk 0:02:42]} 26. Ra1 {[%clk 0:01:47]}  Be2 {[%clk 0:02:31]} 27. a6 {[%clk 0:01:44]}  Bc4 {[%clk 0:02:23]} 28. a7 {[%clk 0:01:43]}  Qb7 {[%clk 0:02:22]} 29. Qa5 {[%clk 0:01:40]}  Ra8 {[%clk 0:02:22]} 30. h4 {[%clk 0:01:33]}  Kh7 {[%clk 0:02:21]} 31. Bf3 {[%clk 0:01:32]}  Qb3 {[%clk 0:02:18]} 32. Ra3 {[%clk 0:01:27]}  Qb1+ {[%clk 0:02:16]} 33. Kh2 {[%clk 0:01:26]}  Qb2+ {[%clk 0:02:16]} 34. Kg1 {[%clk 0:01:23]}  Qb1+ {[%clk 0:02:15]} 35. Kh2 {[%clk 0:01:04]}  Qb2+ {[%clk 0:02:13]} 36. Bg2 {[%clk 0:01:04]}  Qb7 {[%clk 0:01:58]} 37. Kh3 {[%clk 0:01:00]}  Be2 {[%clk 0:01:57]} 38. Ra2 {[%clk 0:00:57]}  Bc4 {[%clk 0:01:53]} 39. Ra3 {[%clk 0:00:55]}  Be2 {[%clk 0:01:52]} 40. Kh2 {[%clk 0:00:55]}  Bc4 {[%clk 0:01:50]} 41. h5 {[%clk 0:00:45]}  Qb2 {[%clk 0:01:46]} 42. Qc3 {[%clk 0:00:41]}  Qxc3 {[%clk 0:01:46]} 43. Rxc3 {[%clk 0:00:41]}  Rxa7 {[%clk 0:01:47]} 44. Kg1 {[%clk 0:00:38]}  Ra1+ {[%clk 0:01:44]} 45. Kh2 {[%clk 0:00:36]}  Ra2 {[%clk 0:01:43]} 46. Kh3 {[%clk 0:00:36]}  Be2 {[%clk 0:01:40]} 47. Kh4 {[%clk 0:00:08]}  Bg4 {[%clk 0:01:38]} 0-1


[Site "https://www.chess.com"]